[Event "44th Chess Olympiad Women 2022"]
[Site "Chennai"]
[Date "2022.07.29"]
[Round "1.28"]
[White "Mungunzul, Bat-Erdene"]
[Black "Al Balushi, Mariya"]
[Result "1-0"]
[WhiteElo "2163"]
[BlackElo "1660"]
[Annotator "ChessBase"]
[PlyCount "89"]
[EventDate "2022.??.??"]
[TimeControl "60"]

1. d4 {[%emt 0:00:03]} d5 {[%emt 0:00:06]} 2. c4 {[%emt 0:00:07]} e6 {[%emt 0:
00:00]} 3. Nc3 {[%emt 0:00:13]} Nf6 {[%emt 0:00:13]} 4. Bg5 {[%emt 0:00:21]}
Be7 {[%emt 0:00:34]} 5. Nf3 {[%emt 0:00:35]} O-O {[%emt 0:00:53]} 6. e3 {
[%emt 0:00:24]} c5 {[%emt 0:05:30]} 7. Be2 {[%emt 0:05:02]} h6 {[%emt 0:05:10]}
8. Bh4 {[%emt 0:01:06]} Nbd7 {[%emt 0:06:08]} 9. O-O {[%emt 0:04:01]} b6 {
[%emt 0:04:38]} 10. cxd5 {[%emt 0:06:35]} Nxd5 {[%emt 0:05:49]} 11. Bxe7 {
[%emt 0:02:43]} Qxe7 {[%emt 0:02:18]} 12. Nxd5 {[%emt 0:01:21]} exd5 {[%emt 0:
00:00]} 13. dxc5 {[%emt 0:00:27]} Nxc5 {[%emt 0:03:12]} 14. Qxd5 {[%emt 0:00:
00]} Bb7 {[%emt 0:00:46]} 15. Qe5 {[%emt 0:01:41]} Qxe5 {[%emt 0:10:46]} 16.
Nxe5 {[%emt 0:00:12]} Rad8 {[%emt 0:03:28]} 17. Rfd1 {[%emt 0:06:29]} Na4 {
[%emt 0:13:46]} 18. Rxd8 {[%emt 0:14:46]} Rxd8 {[%emt 0:00:15]} 19. b3 {
[%emt 0:00:17]} Nc3 {[%emt 0:04:54]} 20. Bc4 {[%emt 0:00:34]} Bd5 {[%emt 0:00:
00]} 21. Bf1 {[%emt 0:03:53]} Be4 {[%emt 0:01:33]} 22. f3 {[%emt 0:06:07]} Bb1
{[%emt 0:07:25]} 23. a4 {[%emt 0:00:43]} Rd1 {[%emt 0:06:50]} 24. Nc4 {[%emt 0:
00:00]} Bc2 {[%emt 0:05:49]} 25. Rxd1 {[%emt 0:05:29]} Nxd1 {[%emt 0:00:05]}
26. Nd2 {[%emt 0:00:11]} Nxe3 {[%emt 0:00:30]} 27. Kf2 {[%emt 0:00:12]} Nf5 {
[%emt 0:00:43]} 28. Bc4 {[%emt 0:01:30]} Kf8 {[%emt 0:00:40]} 29. g4 {[%emt 0:
00:00]} Nd6 {[%emt 0:00:52]} 30. Bd5 {[%emt 0:00:40]} Ke7 {[%emt 0:00:14]} 31.
Ke3 {[%emt 0:00:16]} f5 {[%emt 0:02:08]} 32. Kd4 {[%emt 0:08:57]} fxg4 {
[%emt 0:01:26]} 33. fxg4 {[%emt 0:00:13]} Bd1 {[%emt 0:00:07]} 34. h3 {[%emt 0:
00:00]} Kf6 {[%emt 0:01:48]} 35. Nf1 {[%emt 0:00:33]} Kg5 {[%emt 0:02:13]} 36.
Ke5 {[%emt 0:00:25]} Ne8 {[%emt 0:00:44]} 37. Ne3 {[%emt 0:02:11]} Kh4 {
[%emt 0:00:46]} 38. Nxd1 {[%emt 0:00:13]} Kxh3 {[%emt 0:00:12]} 39. Be6 {
[%emt 0:00:29]} Kh4 {[%emt 0:01:15]} 40. Ne3 {[%emt 0:00:16]} Nc7 {[%emt 0:00:
00]} 41. Bc8 {[%emt 0:30:18]} Ne8 {[%emt 0:30:30]} 42. Nd5 {[%emt 0:00:19]} Kg5
{[%emt 0:00:42]} 43. Bd7 {[%emt 0:00:09]} Nf6 {[%emt 0:00:36]} 44. Nxf6 {
[%emt 0:00:09]} gxf6+ {[%emt 0:00:09]} 45. Ke4 {[%emt 0:00:24]} 1-0

[Event "44th Chess Olympiad Women 2022"]
[Site "Chennai"]
[Date "2022.07.29"]
[Round "1.29"]
[White "Castro, Neusa Aridas De"]
[Black "Hakimifard, Ghazal"]
[Result "1-0"]
[WhiteElo "1531"]
[BlackElo "2296"]
[Annotator "NA RC"]
[PlyCount "21"]
[EventDate "2022.??.??"]
[TimeControl "60"]

1. e4 {[%emt 0:00:42]} c5 {[%emt 0:00:07]} 2. Nf3 {[%emt 0:00:21]} e6 {[%emt 0:
00:00]} 3. Bc4 {[%emt 0:01:23]} a6 {[%emt 0:00:41]} 4. d3 {[%emt 0:03:28]} b5 {
[%emt 0:00:30]} 5. Bb3 {[%emt 0:00:13]} Bb7 {[%emt 0:00:08]} 6. c3 {[%emt 0:00:
00]} d6 {[%emt 0:03:46]} 7. Be3 {[%emt 0:00:38]} Nf6 {[%emt 0:00:17]} 8. O-O {
[%emt 0:02:37]} Be7 {[%emt 0:00:55]} 9. Nbd2 {[%emt 0:00:59]} O-O {[%emt 0:00:
00]} 10. Re1 {[%emt 0:00:08]} Nbd7 {[%emt 0:03:42]} 11. Bc2 {[%emt 0:00:11]}
1-0

[Event "44th Chess Olympiad Women 2022"]
[Site "Chennai"]
[Date "2022.07.29"]
[Round "1.29"]
[White "De Seroux, Camille"]
[Black "Naira Sinoia"]
[Result "1-0"]
[WhiteElo "2106"]
[BlackElo "1116"]
[Annotator "NA RC"]
[PlyCount "55"]
[EventDate "2022.??.??"]
[TimeControl "60"]

1. e4 {[%emt 0:00:04]} e5 {[%emt 0:00:31]} 2. Nf3 {[%emt 0:00:13]} d6 {[%emt 0:
00:00]} 3. d4 {[%emt 0:00:21]} exd4 {[%emt 0:00:54]} 4. Nxd4 {[%emt 0:00:13]}
Nf6 {[%emt 0:00:12]} 5. Nc3 {[%emt 0:00:22]} c5 {[%emt 0:01:19]} 6. Nf3 {
[%emt 0:00:58]} Nc6 {[%emt 0:00:26]} 7. Bc4 {[%emt 0:02:23]} Be7 {[%emt 0:00:
00]} 8. O-O {[%emt 0:00:22]} O-O {[%emt 0:00:09]} 9. h3 {[%emt 0:01:59]} Na5 {
[%emt 0:07:26]} 10. Be2 {[%emt 0:03:43]} Be6 {[%emt 0:00:15]} 11. Bf4 {[%emt 0:
00:00]} Qb6 {[%emt 0:01:06]} 12. b3 {[%emt 0:01:56]} Rfd8 {[%emt 0:00:25]} 13.
Nd5 {[%emt 0:01:42]} Nxd5 {[%emt 0:02:23]} 14. exd5 {[%emt 0:00:07]} Bf5 {
[%emt 0:00:20]} 15. Qd2 {[%emt 0:05:57]} Qc7 {[%emt 0:02:48]} 16. Rad1 {
[%emt 0:10:30]} b6 {[%emt 0:03:26]} 17. Rfe1 {[%emt 0:01:10]} Nb7 {[%emt 0:00:
00]} 18. Bb5 {[%emt 0:05:47]} a6 {[%emt 0:00:35]} 19. Bc6 {[%emt 0:05:47]} Rab8
{[%emt 0:00:35]} 20. Bg5 {[%emt 0:04:52]} Bxg5 {[%emt 0:01:30]} 21. Qxg5 {
[%emt 0:02:01]} Bxc2 {[%emt 0:05:39]} 22. Re7 {[%emt 0:01:51]} Qc8 {[%emt 0:00:
00]} 23. Rd2 {[%emt 0:02:20]} h6 {[%emt 0:02:31]} 24. Qh4 {[%emt 0:01:49]} g5 {
[%emt 0:04:08]} 25. Qxh6 {[%emt 0:01:34]} Bg6 {[%emt 0:00:22]} 26. Nxg5 {
[%emt 0:00:56]} Rf8 {[%emt 0:01:33]} 27. Ne6 {[%emt 0:00:35]} Na5 {[%emt 0:00:
00]} 28. Qg7# {[%emt 0:00:41]} 1-0

[Event "44th Chess Olympiad Women 2022"]
[Site "Chennai"]
[Date "2022.07.29"]
[Round "1.30"]
[White "Heba, Assi"]
[Black "Olde, Margareth"]
[Result "0-1"]
[WhiteElo "1449"]
[BlackElo "2235"]
[Annotator "NA"]
[PlyCount "22"]
[EventDate "2022.??.??"]
[TimeControl "60"]

1. d4 {[%emt 0:00:30]} Nf6 {[%emt 0:00:10]} 2. Nf3 {[%emt 0:00:00]} e6 {
[%emt 0:00:10]} 3. e3 {[%emt 0:00:08]} c5 {[%emt 0:00:36]} 4. b3 {[%emt 0:00:
00]} cxd4 {[%emt 0:00:29]} 5. exd4 {[%emt 0:01:36]} d5 {[%emt 0:00:11]} 6. Bb2
{[%emt 0:02:30]} Bd6 {[%emt 0:00:22]} 7. Bd3 {[%emt 0:00:23]} Nc6 {[%emt 0:00:
00]} 8. a3 {[%emt 0:00:13]} O-O {[%emt 0:00:26]} 9. O-O {[%emt 0:00:35]} b6 {
[%emt 0:00:13]} 10. Nbd2 {[%emt 0:00:21]} Bb7 {[%emt 0:00:36]} 11. Ne5 {
[%emt 0:00:48]} Rc8 {[%emt 0:01:32]} 0-1

[Event "44th Chess Olympiad Women 2022"]
[Site "Chennai"]
[Date "2022.07.29"]
[Round "1.30"]
[White "Sinitsina, Anastassia"]
[Black "Eman Sawan"]
[Result "1-0"]
[WhiteElo "2175"]
[BlackElo "1847"]
[Annotator "ChessBase"]
[PlyCount "75"]
[EventDate "2022.??.??"]
[TimeControl "60"]

1. e4 {[%emt 0:00:06]} c5 {[%emt 0:00:08]} 2. Nf3 {[%emt 0:00:11]} d6 {[%emt 0:
00:00]} 3. d4 {[%emt 0:00:13]} cxd4 {[%emt 0:00:09]} 4. Nxd4 {[%emt 0:00:04]}
Nf6 {[%emt 0:00:18]} 5. Nc3 {[%emt 0:00:34]} a6 {[%emt 0:00:25]} 6. Bg5 {
[%emt 0:00:29]} e6 {[%emt 0:00:27]} 7. f4 {[%emt 0:00:34]} Be7 {[%emt 0:00:15]}
8. Qf3 {[%emt 0:00:29]} Qc7 {[%emt 0:00:35]} 9. O-O-O {[%emt 0:01:26]} Nbd7 {
[%emt 0:00:49]} 10. g4 {[%emt 0:04:24]} b5 {[%emt 0:03:06]} 11. a3 {[%emt 0:00:
00]} Bb7 {[%emt 0:00:45]} 12. Bxf6 {[%emt 0:02:31]} Nxf6 {[%emt 0:01:22]} 13.
g5 {[%emt 0:02:02]} Nd7 {[%emt 0:00:31]} 14. h4 {[%emt 0:04:35]} Rc8 {[%emt 0:
00:00]} 15. Rh2 {[%emt 0:03:16]} Qb6 {[%emt 0:16:56]} 16. f5 {[%emt 0:10:29]}
e5 {[%emt 0:04:41]} 17. Nb3 {[%emt 0:02:41]} b4 {[%emt 0:05:53]} 18. axb4 {
[%emt 0:00:54]} Qxb4 {[%emt 0:01:18]} 19. f6 {[%emt 0:12:33]} gxf6 {[%emt 0:00:
00]} 20. Bh3 {[%emt 0:01:28]} Rc4 {[%emt 0:08:35]} 21. Bxd7+ {[%emt 0:01:37]}
Kxd7 {[%emt 0:01:59]} 22. gxf6 {[%emt 0:00:06]} Bf8 {[%emt 0:01:57]} 23. Qh5 {
[%emt 0:02:49]} Ke8 {[%emt 0:03:12]} 24. Rhd2 {[%emt 0:06:25]} Qb6 {[%emt 0:00:
00]} 25. Rd3 {[%emt 0:01:27]} a5 {[%emt 0:03:01]} 26. Nd2 {[%emt 0:00:47]} Rd4
{[%emt 0:02:22]} 27. Nf3 {[%emt 0:01:38]} Rxd3 {[%emt 0:00:27]} 28. Rxd3 {
[%emt 0:00:21]} Qf2 {[%emt 0:03:33]} 29. Nd1 {[%emt 0:03:23]} Qg3 {[%emt 0:00:
00]} 30. Rb3 {[%emt 0:01:05]} Qf4+ {[%emt 0:00:39]} 31. Kb1 {[%emt 0:00:36]}
Qxe4 {[%emt 0:01:11]} 32. Ng5 {[%emt 0:00:14]} Qd5 {[%emt 0:00:23]} 33. Ne3 {
[%emt 0:01:23]} Qh1+ {[%emt 0:00:57]} 34. Ka2 {[%emt 0:00:05]} Bd5 {[%emt 0:00:
00]} 35. c4 {[%emt 0:00:33]} Bxc4 {[%emt 0:02:46]} 36. Nxc4 {[%emt 0:00:04]}
Qd5 {[%emt 0:00:06]} 37. Rb8+ {[%emt 0:00:33]} Kd7 {[%emt 0:00:09]} 38. Qg4+ {
[%emt 0:00:03]} 1-0

[Event "44th Chess Olympiad Women 2022"]
[Site "Chennai"]
[Date "2022.07.29"]
[Round "1.30"]
[White "Taqwa, Hamouri"]
[Black "Narva, Triin"]
[Result "0-1"]
[WhiteElo "1214"]
[BlackElo "2066"]
[Annotator "NA"]
[PlyCount "58"]
[EventDate "2022.??.??"]
[TimeControl "60"]

1. e4 {[%emt 0:00:04]} d5 {[%emt 0:00:10]} 2. exd5 {[%emt 0:00:35]} Qxd5 {
[%emt 0:00:05]} 3. Nc3 {[%emt 0:00:22]} Qd6 {[%emt 0:00:06]} 4. d4 {[%emt 0:00:
00]} Nf6 {[%emt 0:00:12]} 5. Nf3 {[%emt 0:00:46]} Nc6 {[%emt 0:01:58]} 6. h3 {
[%emt 0:07:19]} Bf5 {[%emt 0:04:35]} 7. Bd3 {[%emt 0:05:43]} Bg6 {[%emt 0:00:
00]} 8. Be3 {[%emt 0:17:53]} e6 {[%emt 0:05:03]} 9. Bxg6 {[%emt 0:03:53]} hxg6
{[%emt 0:02:43]} 10. a3 {[%emt 0:03:25]} O-O-O {[%emt 0:04:05]} 11. Nb5 {
[%emt 0:04:59]} Qd5 {[%emt 0:23:16]} 12. Qd3 {[%emt 0:09:23]} a6 {[%emt 0:00:
00]} 13. Nc3 {[%emt 0:06:55]} Qa5 {[%emt 0:00:00]} 14. O-O {[%emt 0:12:16]} Qh5
{[%emt 0:05:35]} 15. Ne2 {[%emt 0:04:43]} Bd6 {[%emt 0:05:59]} 16. c4 {[%emt 0:
00:00]} Ng4 {[%emt 0:13:32]} 17. c5 {[%emt 0:02:47]} Nxe3 {[%emt 0:02:06]} 18.
Qxe3 {[%emt 0:01:41]} Be7 {[%emt 0:00:12]} 19. b4 {[%emt 0:03:12]} g5 {[%emt 0:
00:00]} 20. Ng3 {[%emt 0:01:10]} Qg6 {[%emt 0:00:36]} 21. Rfe1 {[%emt 0:01:44]}
Bf6 {[%emt 0:02:27]} 22. Ne5 {[%emt 0:02:41]} Bxe5 {[%emt 0:00:32]} 23. dxe5 {
[%emt 0:00:16]} Nd4 {[%emt 0:00:36]} 24. Qc3 {[%emt 0:01:52]} Nc2 {[%emt 0:00:
00]} 25. c6 {[%emt 0:01:10]} Qd3 {[%emt 0:00:46]} 26. cxb7+ {[%emt 0:01:59]}
Kxb7 {[%emt 0:00:10]} 27. Qc5 {[%emt 0:01:03]} Nxa1 {[%emt 0:00:23]} 28. Rxa1 {
[%emt 0:00:50]} Qd4 {[%emt 0:00:27]} 29. Qc2 {[%emt 0:00:32]} Qxa1+ {[%emt 0:
00:00]} 0-1

[Event "44th Chess Olympiad Women 2022"]
[Site "Chennai"]
[Date "2022.07.29"]
[Round "1.31"]
[White "Blackman, Katrina"]
[Black "Chumpitaz, Ann"]
[Result "0-1"]
[WhiteElo "1691"]
[BlackElo "2278"]
[Annotator "RC"]
[PlyCount "68"]
[EventDate "2022.??.??"]
[TimeControl "60"]

1. d4 {[%emt 0:00:04]} Nf6 {[%emt 0:00:08]} 2. Nf3 {[%emt 0:00:03]} g6 {
[%emt 0:00:18]} 3. Bf4 {[%emt 0:00:03]} d5 {[%emt 0:00:03]} 4. e3 {[%emt 0:00:
00]} Bg7 {[%emt 0:00:03]} 5. Be2 {[%emt 0:00:09]} c5 {[%emt 0:00:04]} 6. c3 {
[%emt 0:00:20]} Nc6 {[%emt 0:00:04]} 7. h3 {[%emt 0:01:29]} O-O {[%emt 0:00:06]
} 8. O-O {[%emt 0:00:03]} Nd7 {[%emt 0:00:02]} 9. Bh2 {[%emt 0:02:27]} Re8 {
[%emt 0:00:13]} 10. Qc2 {[%emt 0:08:05]} e5 {[%emt 0:17:41]} 11. Rd1 {[%emt 0:
00:00]} e4 {[%emt 0:14:02]} 12. Nfd2 {[%emt 0:01:03]} Qg5 {[%emt 0:02:07]} 13.
Bf4 {[%emt 0:04:36]} Qe7 {[%emt 0:00:22]} 14. a3 {[%emt 0:06:39]} cxd4 {
[%emt 0:08:38]} 15. cxd4 {[%emt 0:00:22]} Bxd4 {[%emt 0:00:07]} 16. Nc3 {
[%emt 0:09:28]} Nb6 {[%emt 0:03:22]} 17. exd4 {[%emt 0:03:29]} Nxd4 {[%emt 0:
00:00]} 18. Qc1 {[%emt 0:00:02]} Be6 {[%emt 0:02:33]} 19. Re1 {[%emt 0:05:29]}
Rac8 {[%emt 0:10:01]} 20. Qd1 {[%emt 0:06:22]} Nf5 {[%emt 0:07:23]} 21. Bg4 {
[%emt 0:07:20]} Ng7 {[%emt 0:00:10]} 22. Bxe6 {[%emt 0:05:36]} Nxe6 {[%emt 0:
00:00]} 23. Bg3 {[%emt 0:00:40]} f5 {[%emt 0:00:45]} 24. Nb3 {[%emt 0:00:29]}
Rcd8 {[%emt 0:13:04]} 25. Nd4 {[%emt 0:07:18]} Nc5 {[%emt 0:00:09]} 26. Re2 {
[%emt 0:10:58]} Qg7 {[%emt 0:00:39]} 27. b3 {[%emt 0:01:29]} Nd3 {[%emt 0:00:
00]} 28. Ndb5 {[%emt 0:03:27]} f4 {[%emt 0:00:09]} 29. Bh2 {[%emt 0:05:55]} a6
{[%emt 0:00:19]} 30. Rc2 {[%emt 0:03:15]} axb5 {[%emt 0:01:04]} 31. Nxb5 {
[%emt 0:00:26]} Rc8 {[%emt 0:00:37]} 32. Nd6 {[%emt 0:01:11]} Rc6 {[%emt 0:00:
00]} 33. Rc3 Rxc3 {[%emt 0:00:31]} 34. Nxe8 {[%emt 0:00:33]} Rc2 {[%emt 0:00:
00]} 0-1

[Event "44th Chess Olympiad Women 2022"]
[Site "Chennai"]
[Date "2022.07.29"]
[Round "1.31"]
[White "Bravo Mallco, Kate Azumi"]
[Black "Eversley, Kiarra"]
[Result "1-0"]
[WhiteElo "1958"]
[BlackElo "1356"]
[Annotator "NA RC"]
[PlyCount "49"]
[EventDate "2022.??.??"]
[TimeControl "60"]

1. e4 {[%emt 0:00:04]} c5 {[%emt 0:00:14]} 2. Nf3 {[%emt 0:00:09]} d6 {[%emt 0:
00:00]} 3. d4 {[%emt 0:00:06]} cxd4 {[%emt 0:00:24]} 4. Nxd4 {[%emt 0:00:03]}
Nc6 {[%emt 0:00:43]} 5. Nc3 {[%emt 0:03:09]} Nf6 {[%emt 0:00:34]} 6. Bg5 {
[%emt 0:02:09]} e6 {[%emt 0:00:28]} 7. Qd3 {[%emt 0:01:55]} Be7 {[%emt 0:01:43]
} 8. O-O-O {[%emt 0:00:54]} Qa5 {[%emt 0:03:45]} 9. Bxf6 {[%emt 0:03:41]} gxf6
{[%emt 0:04:50]} 10. Ndb5 {[%emt 0:06:16]} O-O {[%emt 0:03:48]} 11. Qg3+ {
[%emt 0:07:44]} Kh8 {[%emt 0:00:09]} 12. Nxd6 {[%emt 0:00:30]} Nb4 {[%emt 0:00:
00]} 13. a3 {[%emt 0:01:40]} Nc6 {[%emt 0:01:22]} 14. h4 {[%emt 0:08:56]} Ne5 {
[%emt 0:02:45]} 15. f4 {[%emt 0:00:51]} Rg8 {[%emt 0:00:25]} 16. Qe1 {[%emt 0:
00:00]} Bxd6 {[%emt 0:01:39]} 17. Rxd6 {[%emt 0:00:05]} Ng4 {[%emt 0:00:33]}
18. Rd2 {[%emt 0:04:45]} Qc5 {[%emt 0:11:36]} 19. h5 {[%emt 0:04:12]} b6 {
[%emt 0:03:20]} 20. Be2 {[%emt 0:07:52]} Bb7 {[%emt 0:07:09]} 21. Qh4 {[%emt 0:
00:00]} f5 {[%emt 0:00:22]} 22. Bxg4 {[%emt 0:01:19]} Rxg4 {[%emt 0:00:52]} 23.
Rd8+ {[%emt 0:08:11]} Rxd8 {[%emt 0:00:15]} 24. Qxd8+ {[%emt 0:00:02]} Kg7 {
[%emt 0:02:00]} 25. h6+ {[%emt 0:00:03]} 1-0

[Event "44th Chess Olympiad Women 2022"]
[Site "Chennai"]
[Date "2022.07.29"]
[Round "1.31"]
[White "Caballero Quijano, Mitzy Mishell"]
[Black "Wilson, Hannah"]
[Result "1-0"]
[WhiteElo "2035"]
[BlackElo "1556"]
[Annotator "NA RC"]
[PlyCount "57"]
[EventDate "2022.??.??"]
[TimeControl "60"]

1. d4 {[%emt 0:00:03]} Nf6 {[%emt 0:00:13]} 2. Nf3 {[%emt 0:00:08]} e6 {
[%emt 0:00:20]} 3. e3 {[%emt 0:00:04]} d5 {[%emt 0:01:14]} 4. Bd3 {[%emt 0:00:
00]} c5 {[%emt 0:00:45]} 5. b3 {[%emt 0:00:04]} Nc6 {[%emt 0:01:07]} 6. Nbd2 {
[%emt 0:00:19]} cxd4 {[%emt 0:03:08]} 7. exd4 {[%emt 0:00:04]} Bd6 {[%emt 0:00:
00]} 8. Bb2 {[%emt 0:00:13]} O-O {[%emt 0:01:29]} 9. O-O {[%emt 0:00:10]} Bd7 {
[%emt 0:11:47]} 10. a3 {[%emt 0:00:09]} a5 {[%emt 0:05:07]} 11. Ne5 {[%emt 0:
00:00]} Qc7 {[%emt 0:04:40]} 12. f4 {[%emt 0:00:14]} Rfb8 {[%emt 0:03:08]} 13.
Qf3 {[%emt 0:00:43]} b5 {[%emt 0:05:46]} 14. Qh3 {[%emt 0:01:19]} b4 {[%emt 0:
00:00]} 15. a4 {[%emt 0:00:05]} Qa7 {[%emt 0:07:30]} 16. Ndf3 {[%emt 0:00:28]}
h6 {[%emt 0:10:50]} 17. g4 {[%emt 0:02:58]} Ne4 {[%emt 0:02:33]} 18. g5 {
[%emt 0:01:09]} Nxg5 {[%emt 0:11:32]} 19. fxg5 {[%emt 0:01:45]} Bxe5 {[%emt 0:
00:00]} 20. Nxe5 {[%emt 0:00:09]} Nxe5 {[%emt 0:00:17]} 21. gxh6 {[%emt 0:00:
00]} Nxd3 {[%emt 0:04:07]} 22. cxd3 {[%emt 0:00:29]} gxh6 {[%emt 0:00:40]} 23.
Rf6 {[%emt 0:00:50]} Kf8 {[%emt 0:00:33]} 24. Raf1 {[%emt 0:00:32]} Ke7 {
[%emt 0:00:36]} 25. Rxf7+ {[%emt 0:00:07]} Kd6 {[%emt 0:00:23]} 26. Qg3+ {
[%emt 0:00:15]} Kc6 {[%emt 0:00:27]} 27. Rc1+ {[%emt 0:00:10]} Kb6 {[%emt 0:00:
00]} 28. Qd6+ {[%emt 0:01:09]} Kb7 {[%emt 0:00:16]} 29. Rxd7# {[%emt 0:01:04]}
1-0

[Event "44th Chess Olympiad Women 2022"]
[Site "Chennai"]
[Date "2022.07.29"]
[Round "1.31"]
[White "Moore, Gaybrianna"]
[Black "Paredes Bustamante, Paula Elizab"]
[Result "0-1"]
[WhiteElo "1335"]
[BlackElo "2162"]
[Annotator "NA RC"]
[PlyCount "70"]
[EventDate "2022.??.??"]
[TimeControl "60"]

1. d4 {[%emt 0:00:08]} d5 {[%emt 0:00:01]} 2. Bf4 {[%emt 0:00:16]} Nf6 {
[%emt 0:00:02]} 3. e3 {[%emt 0:00:13]} c5 {[%emt 0:00:02]} 4. Nf3 {[%emt 0:00:
00]} Nc6 {[%emt 0:00:02]} 5. c3 {[%emt 0:00:44]} e6 {[%emt 0:00:03]} 6. Bd3 {
[%emt 0:00:31]} Bd6 {[%emt 0:00:03]} 7. Bg3 {[%emt 0:00:41]} O-O {[%emt 0:00:
00]} 8. Nbd2 {[%emt 0:00:43]} Qe7 {[%emt 0:01:23]} 9. Ne5 {[%emt 0:00:30]} Bxe5
{[%emt 0:03:33]} 10. dxe5 {[%emt 0:00:43]} Nd7 {[%emt 0:00:02]} 11. Nf3 {
[%emt 0:03:18]} f5 {[%emt 0:07:18]} 12. exf6 {[%emt 0:02:52]} Nxf6 {[%emt 0:00:
00]} 13. Ne5 {[%emt 0:03:25]} Nxe5 {[%emt 0:01:17]} 14. Bxe5 {[%emt 0:00:40]}
Nd7 {[%emt 0:00:40]} 15. Qh5 {[%emt 0:01:52]} g6 {[%emt 0:02:23]} 16. Bxg6 {
[%emt 0:00:34]} Nxe5 {[%emt 0:00:02]} 17. Bxh7+ {[%emt 0:03:59]} Qxh7 {[%emt 0:
00:00]} 18. Qxe5 {[%emt 0:00:20]} Qf5 {[%emt 0:04:59]} 19. Qg3+ {[%emt 0:00:34]
} Kh8 {[%emt 0:00:03]} 20. Qh4+ {[%emt 0:01:29]} Qh7 {[%emt 0:01:28]} 21. Qg5 {
[%emt 0:00:55]} Bd7 {[%emt 0:01:06]} 22. Qe5+ {[%emt 0:02:37]} Qg7 {[%emt 0:00:
00]} 23. Qh5+ {[%emt 0:01:58]} Kg8 {[%emt 0:00:04]} 24. O-O-O {[%emt 0:16:04]}
Rxf2 {[%emt 0:00:42]} 25. Rdf1 {[%emt 0:02:38]} Raf8 {[%emt 0:00:06]} 26. Rxf2
{[%emt 0:01:34]} Rxf2 {[%emt 0:00:03]} 27. g3 {[%emt 0:01:24]} Bb5 {[%emt 0:00:
00]} 28. Re1 {[%emt 0:06:42]} Rf5 {[%emt 0:03:49]} 29. Qh4 {[%emt 0:00:00]} Bd3
{[%emt 0:00:29]} 30. Qd8+ {[%emt 0:00:00]} Rf8 {[%emt 0:00:02]} 31. Qd6 {
[%emt 0:01:37]} Qg6 {[%emt 0:00:22]} 32. Qxc5 {[%emt 0:01:58]} Rf2 {[%emt 0:00:
00]} 33. Qc8+ {[%emt 0:00:49]} Kh7 {[%emt 0:00:03]} 34. Qd7+ {[%emt 0:07:04]}
Kh6 {[%emt 0:00:03]} 35. h3 {[%emt 0:01:29]} Bb5 {[%emt 0:00:16]} 0-1

[Event "44th Chess Olympiad Women 2022"]
[Site "Chennai"]
[Date "2022.07.29"]
[Round "1.32"]
[White "Garcia, Andrea Nicole"]
[Black "Aulia, Medina Warda"]
[Result "0-1"]
[WhiteElo "1631"]
[BlackElo "2374"]
[Annotator "ChessBase"]
[PlyCount "60"]
[EventDate "2022.??.??"]
[TimeControl "60"]

1. e4 {[%emt 0:00:06]} e5 {[%emt 0:00:08]} 2. Nf3 {[%emt 0:00:10]} Nc6 {
[%emt 0:00:10]} 3. Bb5 {[%emt 0:00:13]} g6 {[%emt 0:00:23]} 4. c3 {[%emt 0:00:
00]} a6 {[%emt 0:00:40]} 5. Ba4 {[%emt 0:00:07]} Bg7 {[%emt 0:00:49]} 6. O-O {
[%emt 0:01:43]} Nge7 {[%emt 0:00:57]} 7. d3 {[%emt 0:04:47]} O-O {[%emt 0:00:
00]} 8. Re1 {[%emt 0:05:19]} b5 {[%emt 0:05:05]} 9. Bb3 {[%emt 0:00:18]} d6 {
[%emt 0:03:36]} 10. Nbd2 {[%emt 0:06:17]} Na5 {[%emt 0:15:40]} 11. Bc2 {
[%emt 0:00:14]} c5 {[%emt 0:00:52]} 12. Nf1 {[%emt 0:08:46]} Nac6 {[%emt 0:00:
00]} 13. Be3 {[%emt 0:05:22]} h6 {[%emt 0:05:14]} 14. h3 {[%emt 0:11:08]} f5 {
[%emt 0:04:12]} 15. N3h2 {[%emt 0:17:08]} f4 {[%emt 0:00:57]} 16. Bc1 {[%emt 0:
00:00]} Kh8 {[%emt 0:04:53]} 17. Qf3 {[%emt 0:16:26]} Bd7 {[%emt 0:05:15]} 18.
g4 {[%emt 0:02:55]} Ng8 {[%emt 0:02:31]} 19. Qg2 {[%emt 0:01:15]} Nf6 {[%emt 0:
00:00]} 20. g5 {[%emt 0:03:10]} Nh7 {[%emt 0:02:13]} 21. gxh6 {[%emt 0:01:02]}
Bxh6 {[%emt 0:00:05]} 22. Bd1 {[%emt 0:01:55]} b4 {[%emt 0:07:17]} 23. Bg4 {
[%emt 0:03:18]} Ra7 {[%emt 0:04:21]} 24. Bxd7 {[%emt 0:00:42]} Rxd7 {[%emt 0:
00:00]} 25. Ng4 {[%emt 0:01:44]} f3 {[%emt 0:02:55]} 26. Qg3 {[%emt 0:00:22]}
Bf4 {[%emt 0:00:11]} 27. Bxf4 {[%emt 0:00:18]} exf4 {[%emt 0:00:20]} 28. Qxf3 {
[%emt 0:00:39]} Ng5 {[%emt 0:00:04]} 29. Qg2 {[%emt 0:00:32]} Rh7 {[%emt 0:00:
00]} 30. Nd2 {[%emt 0:04:26]} f3 {[%emt 0:00:33]} 0-1

[Event "44th Chess Olympiad Women 2022"]
[Site "Chennai"]
[Date "2022.07.29"]
[Round "1.32"]
[White "Maradiaga, Cesia"]
[Black "Citra, Dewi Ardhiani Anast"]
[Result "0-1"]
[WhiteElo "1533"]
[BlackElo "2257"]
[Annotator "NA RC"]
[PlyCount "54"]
[EventDate "2022.??.??"]
[TimeControl "60"]

1. Nf3 {[%emt 0:00:04]} d5 {[%emt 0:00:20]} 2. b3 {[%emt 0:00:36]} Nc6 {
[%emt 0:00:29]} 3. d4 {[%emt 0:05:08]} Bg4 {[%emt 0:00:57]} 4. e3 {[%emt 0:00:
00]} e6 {[%emt 0:02:56]} 5. Be2 {[%emt 0:02:33]} Nf6 {[%emt 0:03:06]} 6. O-O {
[%emt 0:05:06]} Bd6 {[%emt 0:02:54]} 7. Nbd2 {[%emt 0:10:56]} Bxf3 {[%emt 0:00:
00]} 8. Nxf3 {[%emt 0:02:14]} Ne4 {[%emt 0:00:18]} 9. Bb2 {[%emt 0:00:55]} Ne7
{[%emt 0:04:12]} 10. c4 {[%emt 0:13:09]} c6 {[%emt 0:00:15]} 11. Rc1 {[%emt 0:
00:00]} O-O {[%emt 0:03:29]} 12. Bd3 {[%emt 0:03:10]} Ng6 {[%emt 0:04:20]} 13.
Ne5 {[%emt 0:05:59]} Nh4 {[%emt 0:05:47]} 14. Bxe4 {[%emt 0:09:21]} dxe4 {
[%emt 0:00:12]} 15. Qe2 {[%emt 0:12:41]} Bxe5 {[%emt 0:02:42]} 16. dxe5 {
[%emt 0:00:20]} Qg5 {[%emt 0:00:09]} 17. f3 {[%emt 0:04:11]} exf3 {[%emt 0:00:
00]} 18. Rxf3 {[%emt 0:00:38]} Nxf3+ {[%emt 0:00:07]} 19. Qxf3 {[%emt 0:00:23]}
Rfd8 {[%emt 0:00:23]} 20. Rf1 {[%emt 0:00:13]} Rd7 {[%emt 0:00:07]} 21. b4 {
[%emt 0:02:32]} Qe7 {[%emt 0:01:38]} 22. c5 {[%emt 0:01:44]} Rd2 {[%emt 0:00:
00]} 23. Rb1 {[%emt 0:03:15]} Qg5 {[%emt 0:02:31]} 24. g3 {[%emt 0:01:08]} Qg6
{[%emt 0:00:54]} 25. e4 {[%emt 0:00:40]} Rad8 {[%emt 0:00:10]} 26. a3 {[%emt 0:
00:00]} h5 {[%emt 0:00:07]} 27. Rf1 {[%emt 0:00:47]} Rxb2 {[%emt 0:00:10]} 0-1